[Event "44th Chess Olympiad Open 2022"]
[Site "Chennai"]
[Date "2022.07.30"]
[Round "2.66"]
[White "Mdoe, Yusuf"]
[Black "Monnaatsheko, Keletshabile"]
[Result "0-1"]
[ECO "C01"]
[WhiteElo "1722"]
[BlackElo "2014"]
[Annotator "TA"]
[PlyCount "72"]
[EventDate "2022.07.29"]
[EventType "team-tourn"]
[EventCountry "IND"]
[SourceTitle "playchess.com"]
[Source "ChessBase"]
[SourceQuality "1"]
[WhiteTeam "Tanzania"]
[BlackTeam "Botswana"]
[WhiteTeamCountry "TAN"]
[BlackTeamCountry "BOT"]
[TimeControl "40/5400+30:1800+30"]

{[%evp 9,72,9,16,-7,-9,-29,0,-33,-21,-32,-35,-37,-18,-18,-10,-21,0,-52,-51,-66,-66,-77,-91,-93,-59,-102,-67,-59,-57,-72,-24,-46,0,0,0,0,12,0,0,0,0,-41,-15,-82,-65,-105,-80,-87,-70,-86,-60,-109,-109,-137,-125,-170,-170,-156,-63,-94,-47,-59,-33,-101,-87]} 1. e4 {[%emt 0:00:32]} e6 {[%emt 0:00:04]} 2. Nf3 {[%emt 0:01:15]} d5 {[%emt 0:00:07]} 3. exd5 {[%emt 0:00:29]} exd5 {[%emt 0:00:04]} 4. d4 {[%emt 0:00:19]} Nc6 {[%emt 0:00:25]} 5. Bb5 {[%emt 0:01:07]} Bd6 {[%emt 0:00:35]} 6. Bg5 {[%emt 0:02:44] C01: French: Exchange Variation.} f6 {[%emt 0:00:10]} 7. Bh4 {[%emt 0:00:27]} Nge7 {[%emt 0:00:19]} 8. Nc3 {[%emt 0:03:39] The position is equal.} Bg4 {[%emt 0:00:41]} 9. h3 {[%emt 0:02:01]} Bh5 {[%emt 0:00:54] [#]} 10. Bg3 $146 {[%emt 0:10:01]} ({Predecessor:} 10. Qd3 Qd7 11. O-O-O O-O-O 12. Kb1 Bg6 13. Qd2 Nf5 14. Nxd5 a6 15. Ba4 Nxh4 16. Nxh4 {0-1 (55) Bidault,R-Lavanant,A (1955) Europe Echecs INT 2022}) 10... Bxg3 {[%emt 0:01:01]} (10... a6 {keeps more tension.} 11. Bxc6+ Nxc6 12. Bxd6 Qxd6 13. Qe2+ Kd7) 11. fxg3 {[%emt 0:00:11]} Qd6 {[%emt 0:02:02]} 12. Bxc6+ {[%emt 0:02:48]} bxc6 {[%emt 0:05:42]} (12... Nxc6 {is interesting.} 13. Qe2+ Kd7 14. O-O-O Rae8) 13. Ne2 {[%emt 0:00:19]} (13. O-O $11) 13... Qb4+ {[%emt 0:02:48]} 14. Qd2 {[%emt 0:00:24]} Qxb2 {[%emt 0:02:14]} 15. Kf2 {[%emt 0:01:01]} Bg6 {[%emt 0:07:50]} (15... Rb8 {is more complex.} 16. Nf4 Bxf3 17. Rab1 Qxb1 18. Rxb1 Rxb1 19. gxf3 Kf7) 16. Rhc1 {[%emt 0:00:14]} O-O {[%emt 0:01:05][%cal Bh8f8,Bf8b8,Bb8b5][%mdl 32]} 17. a4 {[%emt 0:02:24]} Qb8 {[%emt 0:01:40] Black is more active.} 18. Nf4 {[%emt 0:06:42][%cal Be2f4,Bf4d3,Bd3c5][%mdl 32]} Bf7 {[%emt 0:04:15]} 19. Rab1 {[%emt 0:01:05]} Qc8 {[%emt 0:00:10]} (19... Qd8 $17) 20. g4 $11 {[%emt 0:01:18] Against Nf5} Qa6 {[%emt 0:01:46]} (20... Qd8 $15) 21. Nd3 {[%emt 0:05:40]} Rfb8 {[%emt 0:02:14]} 22. Nc5 {[%emt 0:04:35]} Qc8 {[%emt 0:00:04]} 23. a5 {[%emt 0:04:52][%mdl 1024] White has compensation.} Rb5 {[%emt 0:00:45]} 24. a6 {[%emt 0:02:10]} Rab8 {[%emt 0:05:56]} 25. Nb7 {[%emt 0:00:54] Pair of Knights!} Rb6 {[%emt 0:01:18]} 26. Qa5 {[%emt 0:06:47]} (26. Ra1 $11) 26... Qf8 {[%emt 0:14:06]} (26... h5 {with more complications.} 27. gxh5 Bxh5 28. Qa3 Qd7) 27. Rxb6 {[%emt 0:08:17]} axb6 {[%emt 0:07:37]} 28. Qc3 {[%emt 0:06:06]} Ra8 {[%emt 0:01:12]} 29. Ra1 {[%emt 0:04:02]} Qc8 {[%emt 0:05:47]} 30. Ne1 {[%emt 0:04:20]} (30. Qe3 $15 {might be stronger.} Ng6 31. Kg3) 30... h5 $17 {[%emt 0:02:25]} 31. gxh5 {[%emt 0:03:13]} Bxh5 {[%emt 0:00:04]} 32. g4 {[%emt 0:00:58] Against Qf5+} Bg6 {[%emt 0:00:43]} ({Not} 32... Bxg4 33. hxg4 Qxg4 34. Qd3 $11) 33. Nd3 {[%emt 0:00:47]} Bxd3 {[%emt 0:01:20]} ({Black should try} 33... Qd7 $17 34. Kg1 Nc8) 34. Qxd3 $15 {[%emt 0:00:21] [#]} Qd7 {[%emt 0:00:32]} (34... Kf7 $1 $17) 35. Re1 {[%emt 0:04:59]} Kf7 {[%emt 0:01:10]} 36. Re3 {[%emt 0:08:37] [#]} (36. Kg3 $15) 36... Ng6 $1 {[%emt 0:00:45] Weighted Error Value: White=0.21 (precise) /Black=0.14 (very precise)} 0-1

[Event "44th Chess Olympiad Open 2022"]
[Site "Chennai"]
[Date "2022.07.30"]
[Round "2.67"]
[White "Gavarrete, Joel"]
[Black "Dabuae, Thubalkain"]
[Result "1-0"]
[ECO "C45"]
[WhiteElo "2035"]
[BlackElo "1941"]
[Annotator "TA"]
[PlyCount "59"]
[EventDate "2022.07.29"]
[EventType "team-tourn"]
[EventCountry "IND"]
[SourceTitle "playchess.com"]
[Source "ChessBase"]
[SourceQuality "1"]
[WhiteTeam "Honduras"]
[BlackTeam "NRU"]
[WhiteTeamCountry "HON"]
[TimeControl "40/5400+30:1800+30"]

{[%evp 13,59,75,74,47,65,66,142,153,213,101,103,116,108,96,87,86,91,87,101,75,688,89,87,62,62,44,98,64,60,68,333,307,280,154,362,351,362,351,334,341,341,335,388,339,527,488,29994,29995]} 1. e4 {[%emt 0:00:08]} Nc6 {[%emt 0:00:14]} 2. d4 {[%emt 0:01:24]} e5 {[%emt 0:00:45]} 3. Nf3 {[%emt 0:02:10]} exd4 {[%emt 0:01:35]} 4. Nxd4 {[%emt 0:00:11]} Nxd4 {[%emt 0:00:54]} 5. Qxd4 {[%emt 0:00:10]} d6 {[%emt 0:02:05]} 6. Nc3 {[%emt 0:01:53]} Nf6 {[%emt 0:01:38]} 7. Bf4 {[%emt 0:02:38]} Be7 {[%emt 0:00:26]} 8. Be2 {[%emt 0:04:20] C45: Scotch Game.} O-O {[%emt 0:00:38]} 9. O-O-O {[%emt 0:02:46]} c5 {[%emt 0:00:29]} (9... Re8 $14) 10. Qd2 {[%emt 0:01:00] [#] White is much more active. The black rooks are badly placed. White is clearly better.} Ne8 $146 {[%emt 0:09:10] [#]} (10... Qa5 $16 11. Kb1 (11. Bxd6 Bxd6 12. Qxd6 Be6 $16) 11... Re8) ({Predecessor:} 10... Re8 11. f3 Qa5 12. Kb1 Be6 13. b3 Nh5 14. Be3 Bf6 15. Nb5 Qxd2 16. Rxd2 Red8 {1-0 (54) Virkamaki,L-Matomaki,K Finland 1998}) 11. Nd5 {[%emt 0:17:17]} (11. e5 $1 $18 {[%cal Re5d6]}) 11... Be6 $16 {[%emt 0:01:21]} 12. Nxe7+ {[%emt 0:02:21]} (12. Kb1 {is more complex.} Bxd5 13. Qxd5 Nf6 14. Qd3) 12... Qxe7 {[%emt 0:00:25]} 13. Bxd6 {[%emt 0:01:12]} Nxd6 {[%emt 0:00:36]} 14. Qxd6 {[%emt 0:00:06]} Qg5+ {[%emt 0:00:49]} 15. Qd2 {[%emt 0:00:42]} Qxg2 {[%emt 0:01:08]} 16. Qe3 {[%emt 0:00:28] And now Rdg1 would win.} b6 $2 {[%emt 0:00:48][%mdl 8192]} (16... Qh3 $16) 17. h4 $2 {[%emt 0:02:00]} (17. Rdg1 $18 {is the precise move to win.} Qxh1 18. Rxh1) 17... Qg6 {[%emt 0:00:35]} 18. Rdg1 {[%emt 0:05:28]} Qf6 {[%emt 0:01:06]} 19. f4 {[%emt 0:10:36]} Rfe8 {[%emt 0:03:53]} (19... Bxa2 $2 20. e5 Qe7 21. b3 $16 (21. Qg3 f6 $16)) (19... Kh8 $14) 20. e5 {[%emt 0:03:18]} Qe7 {[%emt 0:00:52]} 21. Bb5 {[%emt 0:02:39]} ({Reject} 21. Qg3 f6 $11) 21... Bd7 {[%emt 0:01:14][%mdl 8192] [#]} ({Black should try} 21... Rf8 $1 $14) 22. Qg3 $1 $18 {[%emt 0:02:09][%csl Gg1][%cal Rg3g7]} g6 {[%emt 0:01:11]} 23. Bd3 $40 {[%emt 0:06:32][%mdl 128] White is out for blood.} ({Better is} 23. Bxd7 $18 Qxd7 24. h5) 23... b5 $2 {[%emt 0:03:07]} (23... Kh8 $16 24. h5 g5) 24. h5 {[%emt 0:02:10][%cal Rh5g6]} g5 {[%emt 0:09:00]} 25. Qxg5+ {[%emt 0:06:05]} Qxg5 {[%emt 0:00:20]} 26. Rxg5+ {[%emt 0:00:05]} Kh8 {[%emt 0:00:53]} 27. Rhg1 {[%emt 0:00:38] Threatening mate with Rg7.} Rg8 {[%emt 0:01:07] Prevents Rg7.} 28. h6 {[%emt 0:00:41] Rg7 is the strong threat.} c4 {[%emt 0:01:38]} (28... Rg6 $142 29. Bxg6 hxg6) 29. Be4 {[%emt 0:00:20]} Raf8 {[%emt 0:03:24]} (29... Rxg5 $18 30. Rxg5 Rg8 31. Rxg8+ Kxg8) 30. Rg7 {[%emt 0:00:21] Weighted Error Value: White=0.57/Black=1.09} 1-0

[Event "44th Chess Olympiad Open 2022"]
[Site "Chennai"]
[Date "2022.07.30"]
[Round "2.67"]
[White "Depaune, Ricko"]
[Black "Chinchilla, Alejandro Jose"]
[Result "0-1"]
[ECO "B29"]
[WhiteElo "1726"]
[BlackElo "2166"]
[Annotator "TA"]
[PlyCount "72"]
[EventDate "2022.07.29"]
[EventType "team-tourn"]
[EventCountry "IND"]
[SourceTitle "playchess.com"]
[Source "ChessBase"]
[SourceQuality "1"]
[WhiteTeam "NRU"]
[BlackTeam "Honduras"]
[BlackTeamCountry "HON"]
[TimeControl "40/5400+30:1800+30"]

{[%evp 9,72,26,37,19,37,-23,23,-21,-26,-25,9,-76,-63,-63,-72,-58,-62,-119,-114,-105,-104,-112,-83,-108,-112,-162,-160,-183,-181,-196,-189,-315,-287,-287,-287,-287,-277,-285,-242,-306,-302,-300,-258,-291,-293,-291,-281,-296,-296,-410,-405,-412,-401,-435,-431,-520,-525,-604,-581,-606,-612,-788,-792,-708,-654]} 1. e4 {[%emt 0:00:57]} c5 {[%emt 0:00:14]} 2. d4 {[%emt 0:00:06]} cxd4 {[%emt 0:00:10]} 3. Nf3 {[%emt 0:00:04]} Nf6 {[%emt 0:04:44]} 4. e5 {[%emt 0:01:23]} Nd5 {[%emt 0:00:33]} 5. Qxd4 {[%emt 0:06:33]} e6 {[%emt 0:00:21]} 6. Qd1 {[%emt 0:03:08] B29: Sicilian: 2 Nf3 Nf6 (Nimzowitsch Variation).} Nc6 {[%emt 0:04:59]} 7. Bc4 {[%emt 0:02:56]} (7. a3 $14) 7... Nde7 {[%emt 0:29:53] [#]} (7... d6 $142) 8. Nc3 $146 {[%emt 0:00:48] White has an edge.} ({Predecessor:} 8. O-O Ng6 9. Re1 a6 10. Nc3 Qc7 11. Qe2 Ncxe5 12. Nxe5 Nxe5 13. Bxe6 dxe6 14. Qxe5 Qxe5 15. Rxe5 {1-0 (40) Gontcharov,S (1864)-Sixtus,G (1869) Chess.com INT 2021}) 8... Ng6 {[%emt 0:01:33]} 9. Qe2 {[%emt 0:00:07]} a6 {[%emt 0:01:14]} 10. a3 {[%emt 0:00:07]} (10. Bd3 $11 {keeps the balance.}) 10... Qc7 {[%emt 0:01:06]} 11. O-O {[%emt 0:03:04]} Ncxe5 {[%emt 0:03:06]} 12. Nxe5 {[%emt 0:04:22]} Qxe5 {[%emt 0:00:54]} 13. f4 {[%emt 0:03:51] White is on the road to losing.} (13. Be3 $15) 13... Qxe2 $17 {[%emt 0:00:45]} 14. Bxe2 {[%emt 0:00:18]} Bc5+ {[%emt 0:01:20][%cal Bf8c5,Bc5d4,Bd4f6][%mdl 32]} 15. Kh1 {[%emt 0:00:06]} f5 {[%emt 0:00:11]} 16. Bh5 {[%emt 0:00:53]} b5 {[%emt 0:00:54]} 17. b4 {[%emt 0:01:40]} (17. Nd1 $17) 17... Bd4 $19 {[%emt 0:01:57]} 18. Bb2 {[%emt 0:00:04]} Bb7 {[%emt 0:00:49]} 19. Rad1 {[%emt 0:00:59]} Bf6 {[%emt 0:00:21]} 20. h3 {[%emt 0:08:05]} (20. Bf3 {keeps fighting.} Bxf3 21. Rxf3) 20... Ke7 {[%emt 0:06:35]} 21. Bf3 {[%emt 0:11:51]} Bxf3 {[%emt 0:15:38]} 22. Rxf3 {[%emt 0:00:24]} Rhc8 {[%emt 0:00:30][%cal Og6f4]} 23. g3 {[%emt 0:00:24]} Ra7 {[%emt 0:03:49]} 24. Re3 {[%emt 0:00:07]} Kf7 {[%emt 0:01:45]} 25. Rd6 {[%emt 0:08:20]} Nf8 {[%emt 0:00:33]} 26. Nd1 {[%emt 0:05:07]} Rxc2 {[%emt 0:02:52]} 27. Bxf6 {[%emt 0:01:45]} gxf6 {[%emt 0:00:05]} ({Not} 27... Kxf6 $2 28. Kg1 $19) 28. Red3 {[%emt 0:02:33]} a5 {[%emt 0:02:54]} 29. Rb6 {[%emt 0:03:16]} axb4 {[%emt 0:00:05]} 30. axb4 {[%emt 0:00:09]} Ra1 {[%emt 0:00:31] Strongly threatening ...d5.} 31. Rbd6 {[%emt 0:01:19]} Rb1 {[%emt 0:00:38] Black is clearly winning.} 32. R6d4 {[%emt 0:01:05]} d5 {[%emt 0:02:40]} 33. g4 {[%emt 0:02:25]} Kg6 {[%emt 0:04:50]} 34. Rg3 {[%emt 0:02:16]} Rc4 {[%emt 0:00:12]} 35. gxf5+ {[%emt 0:05:30]} Kxf5 {[%emt 0:00:20]} 36. Rd2 {[%emt 0:05:45]} Rxf4 {[%emt 0:00:39] Weighted Error Value: White=0.41/Black=0.09 (flawless)} 0-1

[Event "44th Chess Olympiad Open 2022"]
[Site "Chennai"]
[Date "2022.07.30"]
[Round "2.68"]
[White "Willem Blijstra"]
[Black "Ebosse Kingue Victor Patrick"]
[Result "0-1"]
[ECO "E73"]
[WhiteElo "2198"]
[BlackElo "2054"]
[Annotator "TA"]
[PlyCount "82"]
[EventDate "2022.07.29"]
[EventType "team-tourn"]
[EventCountry "IND"]
[SourceTitle "playchess.com"]
[Source "ChessBase"]
[SourceQuality "1"]
[WhiteTeam "Netherlands Antilles"]
[BlackTeam "CMR"]
[WhiteTeamCountry "AHO"]
[TimeControl "40/5400+30:1800+30"]

{[%evp 16,82,66,57,61,66,77,66,79,51,84,21,31,13,47,34,116,64,58,63,52,75,133,128,182,169,170,188,205,29,32,37,35,34,92,-11,423,0,0,30,38,-31,55,-143,-73,-372,-358,-563,-547,-1001,-989,-990,-690,-1044,-1013,-991,-940,-29969,-29969,-6295,-6275,-29989,-29990,-29990,-29991,-29994,-29988,-29987,-29982]} 1. d4 {[%emt 0:00:04]} Nf6 {[%emt 0:00:12]} 2. c4 {[%emt 0:00:05]} g6 {[%emt 0:00:09]} 3. Nc3 {[%emt 0:00:21]} Bg7 {[%emt 0:00:06]} 4. e4 {[%emt 0:00:20]} d6 {[%emt 0:00:05]} 5. Be2 {[%emt 0:00:21]} O-O {[%emt 0:00:10]} 6. Bg5 {[%emt 0:01:36]} h6 {[%emt 0:00:10]} 7. Be3 {[%emt 0:00:23]} e5 {[%emt 0:04:51]} 8. d5 {[%emt 0:00:13]} c6 {[%emt 0:00:55]} 9. g4 {[%emt 0:09:45]} cxd5 {[%emt 0:04:03] E73: King's Indian: Averbakh Variation without 6...c5.} 10. cxd5 {[%emt 0:08:55]} b5 {[%emt 0:02:10] Strongly threatening ...b4.} 11. a3 {[%emt 0:04:12] [#]} Na6 $146 {[%emt 0:03:06] White is slightly better.} ({Predecessor:} 11... Nbd7 12. Bxb5 Rb8 13. f3 a6 14. Bc6 Nb6 15. Qd3 Bxg4 16. fxg4 Nxg4 17. Bd2 Nc4 18. Qxc4 {1-0 (28) Sibashvili,G (2381)-Eminov,O (2353) Marmaris 2019}) 12. b4 {[%emt 0:05:53]} (12. h4 $5 {[%cal Rg4g5]}) 12... Nc7 {[%emt 0:00:38]} 13. f3 {[%emt 0:11:48]} (13. h4 $16) 13... Bd7 {[%emt 0:07:41]} 14. Qd2 {[%emt 0:01:18]} Kh7 {[%emt 0:02:18]} 15. h4 {[%emt 0:05:05]} Ng8 {[%emt 0:06:39]} (15... a5 $14) 16. Bd3 {[%emt 0:02:08]} (16. h5 $16) 16... a5 $14 {[%emt 0:11:27]} 17. Rc1 {[%emt 0:02:53]} axb4 {[%emt 0:02:50]} 18. axb4 {[%emt 0:00:05]} Qb8 {[%emt 0:04:44]} ({Black should try} 18... f5) 19. Nge2 $16 {[%emt 0:00:47]} Bf6 {[%emt 0:21:39]} (19... Rc8 $16 {keeps fighting.} 20. h5 Qb7) 20. g5 $18 {[%emt 0:02:00]} Bd8 {[%emt 0:00:41]} 21. h5 {[%emt 0:00:13]} Na6 {[%emt 0:01:52]} 22. hxg6+ $2 {[%emt 0:02:57]} (22. Rb1 $18) 22... fxg6 $11 {[%emt 0:00:08]} 23. f4 $1 {[%emt 0:01:20] aiming for Rb1.} (23. gxh6 $2 Nxb4 24. f4 Nxd3+ 25. Qxd3 b4 $17) 23... Nxb4 {[%emt 0:01:18]} 24. Bb1 {[%emt 0:00:48][%cal Of4f5]} Na6 {[%emt 0:05:43]} (24... Bb6 $14) 25. Ng3 {[%emt 0:01:02]} (25. f5 $1 $16) 25... Kg7 $2 {[%emt 0:03:27][%mdl 8192]} (25... exf4 $11 {and Black stays safe.} 26. Bxf4 b4) 26. gxh6+ $2 {[%emt 0:01:42]} (26. f5 $18 Rf7 27. fxg6 Kxg6 28. Nf5 Bxg5 29. Rg1 (29. Qg2 Qd8 $16)) 26... Kh7 {[%emt 0:01:23] ...Nf6 is the strong threat.} 27. f5 {[%emt 0:00:31] And now fxg6+ would win.} Be8 {[%emt 0:00:28]} 28. Qf2 {[%emt 0:04:28]} (28. Rg1 $14 b4 29. fxg6+ Bxg6 30. Nd1 (30. Nf5 $2 bxc3 31. Qxc3 Nc5 $19)) 28... Nf6 {[%emt 0:01:59]} ({Black should play} 28... Ba5 $15) 29. Qf3 $2 {[%emt 0:04:03]} (29. fxg6+ $14 {was forced to keep a grip.} Bxg6 30. Rg1) 29... Nc5 {[%emt 0:01:05]} (29... b4 $142 30. Nd1 b3) 30. Kf2 $2 {[%emt 0:01:22][%mdl 8192]} (30. fxg6+ $17 {is the only way for White.} Bxg6 31. Nf5) 30... Ra3 {[%emt 0:02:10]} 31. fxg6+ {[%emt 0:02:17]} (31. Rhg1 $142 b4 32. Nce2) 31... Bxg6 $19 {[%emt 0:00:06] White must now prevent ...Ng4+.} 32. Nf5 {[%emt 0:00:09] [#]} Rxc3 $1 {[%emt 0:01:32][%mdl 512]} 33. Rxc3 {[%emt 0:01:39] [#]} Nfxe4+ $1 {[%emt 0:00:29][%mdl 512]} 34. Bxe4 {[%emt 0:00:18]} (34. Kg2 Nxc3) 34... Nxe4+ {[%emt 0:00:25]} 35. Qxe4 {[%emt 0:00:44]} Rxf5+ {[%emt 0:01:49]} 36. Qf3 {[%emt 0:06:38]} Rxf3+ {[%emt 0:00:47]} 37. Kxf3 {[%emt 0:00:03]} Qb7 {[%emt 0:00:17]} 38. Rc6 {[%emt 0:00:09]} Qf7+ {[%emt 0:00:17] Black mates.} 39. Ke2 {[%emt 0:01:06]} Qxd5 {[%emt 0:00:12]} 40. Rhc1 {[%emt 0:00:59]} Bd3+ {[%emt 0:01:35]} 41. Ke1 {[%emt 0:31:36]} Bc4 {[%emt 0:33:23] Weighted Error Value: White=1.27/Black=0.50} 0-1

[Event "44th Chess Olympiad Open 2022"]
[Site "Chennai"]
[Date "2022.07.30"]
[Round "2.68"]
[White "Rurik Capella"]
[Black "Zebaze Dongmo Loic Dylane"]
[Result "1-0"]
[ECO "C02"]
[WhiteElo "1952"]
[BlackElo "1837"]
[Annotator "TA"]
[PlyCount "61"]
[EventDate "2022.07.29"]
[EventType "team-tourn"]
[EventCountry "IND"]
[SourceTitle "playchess.com"]
[Source "ChessBase"]
[SourceQuality "1"]
[WhiteTeam "Netherlands Antilles"]
[BlackTeam "CMR"]
[WhiteTeamCountry "AHO"]
[TimeControl "40/5400+30:1800+30"]

{[%evp 11,61,11,34,39,57,58,92,96,174,175,202,88,88,88,179,0,0,-27,-20,-12,-29,-22,-15,-21,-25,-22,0,-25,21,21,22,0,103,95,90,37,39,16,474,382,782,776,775,739,29984,29985,29985,2822,29987,29988,29990,29991]} 1. e4 {[%emt 0:00:14]} e6 {[%emt 0:00:08]} 2. d4 {[%emt 0:00:14]} d5 {[%emt 0:00:02]} 3. e5 {[%emt 0:00:12]} c5 {[%emt 0:00:23]} 4. c3 {[%emt 0:00:17]} Nc6 {[%emt 0:00:07]} 5. Nf3 {[%emt 0:00:12]} Nge7 {[%emt 0:01:09]} 6. Bd3 {[%emt 0:01:48]} Ng6 {[%emt 0:00:11]} 7. h4 {[%emt 0:00:22][%cal Bh2h4,Bh4h5][%mdl 32] C02: French: Advance Variation.} cxd4 {[%emt 0:00:14]} 8. cxd4 {[%emt 0:06:12]} Bb4+ {[%emt 0:04:12]} 9. Nc3 {[%emt 0:00:29] White is better.} Bd7 {[%emt 0:01:24]} (9... h6 $16) 10. h5 $18 {[%emt 0:02:38]} Nge7 {[%emt 0:00:26]} 11. a3 {[%emt 0:07:50]} (11. h6 $1 $18 {[%cal Rh6g7] is more deadly.} g6 12. a3) 11... Bxc3+ $16 {[%emt 0:02:06]} 12. bxc3 {[%emt 0:00:12]} Na5 {[%emt 0:00:30] [#]} (12... h6 $16 {keeps fighting.}) 13. Ng5 $146 {[%emt 0:09:49]} (13. h6 $1 $18 {[%cal Rh6g7]} gxh6 14. Bxh6 (14. Rxh6 Qc7 $16)) ({Predecessor:} 13. h6 g6 14. Nh2 Qc7 15. Bg5 Qxc3+ 16. Kf1 Ng8 17. Ng4 Nb3 18. Rb1 Na5 19. Qf3 {1-0 (42) Viskelis,D (2245)-Kucinskas,V Vilnius 1995}) 13... h6 $11 {[%emt 0:02:12]} 14. Nh3 {[%emt 0:00:03]} Rc8 $36 {[%emt 0:00:57][%mdl 2048] Black has the initiative.} 15. Bd2 {[%emt 0:05:24]} Nc4 {[%emt 0:02:21]} 16. O-O {[%emt 0:05:04]} Nb2 {[%emt 0:01:35] Pair of Knights!} 17. Qc2 {[%emt 0:04:34]} Nxd3 {[%emt 0:00:20]} 18. Qxd3 {[%emt 0:00:02]} a6 {[%emt 0:01:56] Threatens to win with ...Bb5.} 19. Qf3 {[%emt 0:06:03]} Nc6 {[%emt 0:06:52]} (19... Bb5 {feels stronger.} 20. Rfb1 Qd7) 20. Qg4 {[%emt 0:05:46]} Kf8 {[%emt 0:02:33]} 21. Rfe1 {[%emt 0:04:24]} Qb6 {[%emt 0:10:20]} (21... Kg8 $11 {remains equal.}) 22. Rab1 $16 {[%emt 0:02:57]} Qc7 {[%emt 0:00:28] [#]} 23. Re3 {[%emt 0:01:48] White is much more active.} (23. c4 $1 $16) 23... Ne7 $1 $14 {[%emt 0:00:15]} 24. Rf3 {[%emt 0:05:13]} Bb5 $2 {[%emt 0:00:56][%mdl 8192] This costs Black the game.} (24... Kg8 $11 {and Black has nothing to worry.}) 25. Qxe6 {[%emt 0:04:34][%csl Gf3][%cal Re6f7]} Ng8 $2 {[%emt 0:06:05] [#]} (25... Be8 26. Qg4 Kg8) 26. Rxf7+ $3 $18 {[%emt 0:04:53][%mdl 512]} Qxf7 {[%emt 0:00:46]} 27. Qxc8+ {[%emt 0:00:02]} Be8 {[%emt 0:00:39]} 28. Rxb7 {[%emt 0:02:22]} Ne7 {[%emt 0:01:12]} 29. Qc5 {[%emt 0:00:26]} (29. Qd8 $142 Kg8 30. Rxe7 Kh7 31. Rxf7 Bxf7 32. Qd6 Bxh5 33. Nf4 Be8 34. e6) 29... Rg8 {[%emt 0:04:39]} 30. Nf4 {[%emt 0:01:54]} g5 {[%emt 0:00:42]} 31. hxg6 {[%emt 0:02:40] Weighted Error Value: White=0.27 (precise) /Black=0.96} 1-0